bitfinex-derivatives/quotes_ETHF0:USTF0_20241104
["timestamp","ask_amount","ask_price","bid_price","bid_amount"]
[1730700762769,0.4045,2473.8,2473.6,0.40452]
[1730700763068,0.4045,2473.8,2473.3,7.2349097]
[1730700763268,0.4045,2473.8,2473.6,0.40451]
[1730700763874,0.85339,2473.9,2473.6,0.40452]
[1730700764558,0.4489,2473.9,2473.6,0.40452]
[1730700764770,0.4045,2473.8,2473.6,0.40452]
[1730700765360,0.4045,2473.8,2473.3,7.2349097]
[1730700765361,0.40449,2473.8,2473.5,0.40453]
[1730700765661,0.4489,2473.9,2473.4,0.40455]
[1730700765662,0.40453,2473.6,2473.4,0.40455]
[1730700765871,0.4365,2473.5,2473.4,0.40455]
[1730700766164,0.4259,2473.5,2473.4,0.40455]
[1730700766363,0.4045,2473.8,2473.6,0.40453]
[1730700766364,0.841,2473.8,2473.6,0.40453]
[1730700767171,0.40451,2473.7,2473.5,0.40453]
[1730700767559,0.4365,2473.8,2473.6,0.40453]
[1730700767560,0.84101,2473.8,2473.6,0.40453]
[1730700768361,0.4365,2473.8,2473.3,4.0751]
[1730700768573,0.40451,2473.7,2473.5,0.40453]
[1730700770071,0.40452,2473.7,2473.5,0.40454]
[1730700770578,0.40453,2473.6,2473.5,0.40454]
[1730700770770,0.40452,2473.7,2473.5,0.40454]
[1730700772274,0.40451,2473.7,2473.5,0.40454]
[1730700773270,0.40453,2473.6,2473.4,0.40455]
[1730700773776,0.4641,2473.5,2473.4,0.40455]
[1730700774565,0.40451,2473.7,2473.4,0.40456]
[1730700774770,0.86861,2473.7,2473.5,0.40453]
[1730700775774,0.4641,2473.7,2473.3,0.4473]
[1730700775983,0.4641,2473.7,2473.6,0.40453]
[1730700776280,0.86861,2473.7,2473.3,0.4473]
[1730700776477,0.86861,2473.7,2473.5,0.40453]
[1730700777680,0.4641,2473.7,2473.6,0.40453]
[1730700777980,0.86862,2473.7,2473.5,0.40454]
[1730700781085,0.40453,2473.6,2473.5,0.40454]
[1730700781384,0.4641,2473.7,2473.5,0.40454]
[1730700781577,0.4641,2473.7,2473.6,0.40453]
[1730700782173,0.4365,2473.8,2473.7,0.40451]
[1730700782686,0.4583,2473.9,2473.8,0.40449]
[1730700783076,0.4447,2474.2,2473.9,0.40448]
[1730700783276,0.84913,2474.2,2474.0,1.31405]
[1730700783679,0.4447,2474.2,2474.0,1.31405]
[1730700783990,0.86271,2474.4,2474.1,0.40444]
[1730700784190,1.30741,2474.4,2474.1,0.40444]
[1730700784383,0.40442,2474.3,2474.1,0.40444]
[1730700784884,0.40442,2474.3,2474.0,1.31405]
[1730700785083,0.903,2474.4,2474.0,0.9096]
[1730700785280,0.40441,2474.3,2474.1,0.40444]
[1730700786489,0.903,2474.4,2474.0,0.9096]
[1730700786714,0.40442,2474.3,2474.0,1.31405]
[1730700787799,0.903,2474.4,2473.9,0.4413]
[1730700787999,0.903,2474.4,2473.7,0.4045]
[1730700788000,3.2078,2474.3,2473.7,0.4045]
[1730700788205,3.2078,2474.0,2473.6,0.917]
[1730700788409,0.4045,2473.8,2473.6,1.32152]
[1730700789712,1.3443,2473.9,2473.2,3.2078]
[1730700789909,1.3443,2473.9,2473.4,0.40455]
[1730700789910,0.40454,2473.6,2473.4,0.40455]
[1730700790210,0.40454,2473.6,2473.3,0.86837]
[1730700790610,0.40454,2473.6,2473.4,0.40456]
[1730700790910,0.452,2473.5,2473.4,0.40456]
[1730700791312,0.452,2473.5,2473.4,0.99074782]
[1730700791810,0.452,2473.5,2473.4,0.58618782]
[1730700792604,0.452,2473.5,2473.2,0.4431]
[1730700792804,0.4421,2473.4,2473.3,0.40458]
[1730700793013,0.4421,2473.4,2473.1,0.4639]
[1730700793208,0.84667,2473.4,2473.2,0.99112697]
[1730700793412,0.4421,2473.4,2473.1,0.4639]
[1730700793711,0.40458,2473.3,2473.1,0.4046]
[1730700795414,0.40458,2473.3,2473.0,0.8856]
[1730700795918,0.40458,2473.3,2473.1,0.40461]
[1730700796108,0.4421,2473.4,2473.2,0.40458]
[1730700796307,0.84667,2473.4,2473.1,0.4046]
[1730700797218,0.84667,2473.4,2473.2,0.40459]
[1730700797517,0.84667,2473.4,2473.1,0.4046]
[1730700797709,0.40458,2473.3,2473.1,0.4046]
[1730700798220,0.4421,2473.4,2473.1,0.4046]
[1730700798515,0.40458,2473.3,2473.1,0.4046]
[1730700800221,0.40458,2473.3,2473.0,0.8856]
[1730700800414,0.40458,2473.3,2473.0,1.29021]
[1730700800614,0.84667,2473.4,2473.1,0.4046]
[1730700801011,0.40458,2473.3,2473.0,0.8856]
[1730700801308,0.40458,2473.3,2473.0,1.29021]
[1730700801516,1.41537529,2473.3,2473.0,1.29021]
[1730700801918,1.41537529,2473.3,2473.1,0.40461]
[1730700802813,1.41537529,2473.3,2473.0,0.8856]
[1730700803018,1.41537529,2473.3,2473.0,1.29022]
[1730700804813,0.4046,2473.2,2473.0,0.85022]
[1730700805213,0.4428,2473.1,2473.0,0.85022]
[1730700808115,0.84742,2473.1,2472.9,0.40464]
[1730700808919,0.40464,2472.9,2472.7,4.04007]
[1730700809120,0.40466,2472.8,2472.6,0.40468]
[1730700809320,0.40466,2472.8,2472.7,0.59015743]
[1730700809526,0.84549,2472.7,2472.5,1.2991]
[1730700810324,0.84547,2472.7,2472.5,1.2991]
[1730700812335,0.84547,2472.7,2472.5,0.8435]
[1730700812336,0.4195,2472.6,2472.5,0.8435]
[1730700813227,0.4195,2472.6,2472.4,3.2078]
[1730700813417,0.40473,2472.4,2472.1,6.26562355]
[1730700813622,0.4423,2472.3,2472.2,0.40474]
[1730700816518,0.4423,2472.3,2472.1,1.50831905]
[1730700816825,0.4423,2472.3,2472.1,1.05431905]
[1730700816826,0.40476,2472.2,2472.1,1.05431905]
[1730700819127,0.40476,2472.2,2472.0,0.40479]
[1730700819432,0.84705,2472.3,2472.1,0.40477]
[1730700819631,0.4597,2472.2,2472.1,0.40477]
[1730700819827,0.4597,2472.2,2472.0,0.40478]
[1730700820129,0.4597,2472.2,2472.1,0.40477]
[1730700820322,0.4423,2472.3,2472.2,0.40476]
[1730700821733,3.2078,2472.4,2472.3,0.40474]
[1730700821930,0.4306,2472.6,2472.5,0.40471]
[1730700822931,0.4306,2472.6,2472.3,1.3208]
[1730700822932,3.5857097,2473.0,2472.3,1.3208]
[1730700823132,0.4306,2472.9,2472.7,0.40466]
[1730700823327,0.83524,2472.9,2472.7,0.40466]
[1730700823528,0.83524,2472.9,2472.6,0.40468]
[1730700823734,0.40468,2472.7,2472.4,0.40471]
[1730700824830,0.40467,2472.8,2472.5,0.4047]
[1730700825231,0.4306,2472.9,2472.5,0.4047]
[1730700825431,0.4306,2472.9,2472.3,1.3208]
[1730700825737,0.40467,2472.8,2472.5,0.4047]
[1730700826335,0.4306,2472.9,2472.3,1.3208]
[1730700826738,0.4306,2472.9,2472.7,0.40466]
[1730700826927,0.4306,2472.9,2472.8,0.40466]
[1730700827927,0.83524,2472.9,2472.7,0.40466]
[1730700830733,0.83524,2472.9,2472.6,0.40468]
[1730700831438,0.4306,2472.9,2472.3,4.5286]
[1730700831629,0.83525,2472.9,2472.7,0.40467]
[1730700832636,0.83525,2472.9,2472.3,4.5286]
[1730700833044,0.40466,2472.8,2472.6,0.40468]
[1730700833334,0.83525,2472.9,2472.6,0.40468]
[1730700834232,0.83525,2472.9,2472.3,4.5286]
[1730700834435,0.83525,2472.9,2472.3,1.3208]
[1730700834627,0.83525,2472.9,2472.6,0.40468]
[1730700835344,0.83525,2472.9,2472.7,0.40467]
[1730700835540,0.83524,2472.9,2472.7,0.40467]
[1730700835937,0.4306,2472.9,2472.7,0.40466]
[1730700836139,0.83525,2472.9,2472.7,0.40466]
[1730700836337,0.4306,2472.9,2472.8,0.40466]
[1730700838132,0.83524,2472.9,2472.7,0.40467]
[1730700840643,0.4306,2472.9,2472.3,4.5286]
[1730700840842,0.83524,2472.9,2472.8,0.40466]
[1730700841036,0.83524,2472.9,2472.7,0.40467]
[1730700841447,2.29300455,2472.9,2472.7,0.40467]
[1730700841648,1.88836455,2472.9,2472.4,1.45776455]
[1730700841836,2.29300455,2472.9,2472.4,1.45776455]
[1730700842040,2.29300455,2472.9,2472.7,0.40466]
[1730700842439,1.88836455,2472.9,2472.8,0.40466]
[1730700842851,1.88836455,2472.9,2472.4,1.45776455]
[1730700843043,2.29301455,2472.9,2472.7,0.40467]
[1730700843958,0.40467,2472.8,2472.6,0.40469]
[1730700844142,1.86243455,2472.7,2472.5,0.4047]
[1730700844552,1.86247455,2472.6,2472.4,0.40472]
[1730700844748,2.29257455,2472.6,2472.4,0.40472]
[1730700845049,0.4211,2472.5,2472.4,0.40472]
[1730700845240,1.86242455,2472.9,2472.4,0.40472]
[1730700845553,1.86242455,2472.9,2472.6,0.40469]
[1730700845554,0.40467,2472.8,2472.6,0.40469]
[1730700845739,0.40467,2472.8,2472.3,4.5286]
[1730700845740,1.45776455,2472.8,2472.3,4.5286]
[1730700845947,1.86246455,2472.6,2472.4,0.40471]
[1730700846148,0.4469,2472.5,2472.4,0.40471]
[1730700849447,0.4469,2472.5,2472.3,3.2078]
[1730700849448,0.40472,2472.4,2472.3,3.2078]
[1730700849749,1.90466455,2472.5,2472.3,3.2078]
[1730700849959,0.40472,2472.4,2472.3,3.2078]
[1730700854045,0.40472,2472.4,2472.1,3.2078]
[1730700854046,0.40476,2472.2,2472.1,3.2078]
[1730700854559,0.40477,2472.1,2472.0,0.40479]
[1730700854754,3.12533455,2472.1,2472.0,0.59421704]
[1730700854949,3.12533455,2472.1,2471.9,0.4048]
[1730700858150,2.72056455,2472.1,2471.9,0.4048]
[1730700858352,0.40479,2472.0,2471.9,0.4048]
[1730700858551,2.72056455,2472.1,2471.9,0.4048]
[1730700858754,3.12535455,2472.1,2471.9,0.4048]
[1730700859564,0.40481,2471.9,2471.7,0.85213]
[1730700859754,1.86257455,2471.9,2471.7,0.85213]
[1730700859950,1.45776455,2471.9,2471.6,3.2078]
[1730700860154,1.2628,2472.1,2471.3,2.5120836]
[1730700860155,4.66556455,2471.7,2471.3,0.40489]
[1730700860351,1.45776455,2471.4,2471.3,0.4049]
[1730700861457,4.52674485,2471.6,2471.3,0.4049]
[1730700861665,0.40487,2471.5,2471.3,0.4049]
[1730700862155,4.93160485,2471.6,2471.4,0.40489]
[1730700862364,4.93160485,2471.6,2471.1,0.4637]
[1730700862365,4.52674485,2471.6,2471.3,0.40489]
[1730700862560,0.40487,2471.5,2471.3,0.40489]
[1730700864367,4.93161485,2471.6,2471.3,0.40489]
[1730700864868,4.93160485,2471.6,2471.1,0.4637]
[1730700865065,4.93160485,2471.6,2471.3,0.40489]
[1730700866362,0.40488,2471.5,2471.3,0.40489]
[1730700866561,4.52674485,2471.6,2471.2,0.40491]
[1730700866562,0.40489,2471.4,2471.2,0.40491]
[1730700866865,0.40493,2471.2,2471.0,1.30765]
[1730700867062,0.4398,2471.1,2471.0,1.30765]
[1730700867264,0.4398,2471.1,2470.9,3.6461]
[1730700867265,0.9004,2471.1,2470.9,3.6461]
[1730700867664,0.9004,2471.1,2471.0,0.40495]
[1730700867865,0.9004,2471.1,2470.9,3.6461]
[1730700868166,3.16044485,2471.4,2470.9,3.6461]
[1730700868468,0.4247,2471.4,2471.3,0.4049]
[1730700869368,0.86546,2471.6,2471.0,0.8825]
[1730700869568,0.4247,2471.5,2471.4,0.40489]
[1730700870159,0.4247,2471.5,2471.0,0.8825]
[1730700870160,0.82958,2471.5,2471.3,0.4049]
[1730700870364,3.16044485,2471.4,2471.3,0.4049]
[1730700871466,3.16044485,2471.4,2471.0,0.8825]
[1730700871669,3.16044485,2471.4,2471.2,0.40491]
[1730700872562,3.56533485,2471.4,2471.2,0.40491]
[1730700875776,3.16044485,2471.4,2471.1,0.40494]
[1730700875966,3.56533485,2471.4,2471.2,0.40491]
[1730700877366,3.16044485,2471.4,2471.3,0.8456]
[1730700878468,3.16044485,2471.4,2471.3,0.4407]
[1730700878970,3.16044485,2471.4,2471.3,0.8456]
[1730700880980,3.16044485,2471.4,2471.3,0.4049]
[1730700881168,7.61173485,2471.4,2471.2,0.40491]
[1730700881369,3.99553485,2471.4,2471.2,0.40491]
[1730700883381,1.4586642,2471.3,2471.2,0.40491]
[1730700883775,1.4586642,2471.4,2471.0,0.8825]
[1730700883970,1.9054642,2471.4,2471.3,0.4049]
[1730700885578,4.2608,2471.9,2471.5,0.40486]
[1730700885579,1.4586642,2471.6,2471.5,0.40486]
[1730700886376,2.7648842,2471.8,2471.7,0.40484]
[1730700887172,2.7648842,2471.8,2471.6,0.40484]
[1730700887483,2.3600642,2471.8,2471.6,0.40484]
[1730700887679,0.40484,2471.7,2471.6,0.40484]
[1730700891285,4.06132569,2471.8,2471.4,0.8651]
[1730700891580,0.40488,2471.5,2471.3,0.4049]
[1730700891777,0.9147,2471.4,2471.3,0.4049]
[1730700893689,1.3196,2471.4,2471.2,0.40491]
[1730700894486,0.40491,2471.3,2471.1,0.40493]
[1730700894697,0.40492,2471.2,2471.0,0.4643]
[1730700894989,7.28242569,2471.4,2470.9,0.8654]
[1730700895187,0.40492,2471.3,2471.1,0.40493]
[1730700895388,7.28242569,2471.4,2471.1,0.40493]
[1730700895686,3.2078,2471.4,2471.1,0.40493]
[1730700895888,0.40484,2471.7,2471.5,0.40486]
[1730700896081,0.83833,2471.8,2471.6,1.71475]
[1730700896282,0.40484,2471.7,2471.6,1.71475]
[1730700896477,0.83833,2471.8,2471.6,1.71475]
[1730700896682,0.40484,2471.7,2471.6,1.3099]
[1730700896881,0.4335,2471.8,2471.6,1.3099]
[1730700897088,0.40484,2471.7,2471.6,1.3099]
[1730700898084,0.4335,2471.8,2471.6,1.3099]
[1730700898391,0.83833,2471.8,2471.6,1.71475]
[1730700899886,0.4335,2471.8,2471.6,1.71475]
[1730700900086,0.83833,2471.8,2471.6,1.71475]
[1730700900388,3.59742569,2471.9,2471.6,1.71475]
[1730700900389,3.2078,2471.9,2471.6,1.3099]
[1730700900695,0.40479,2472.1,2471.9,0.40479]
[1730700900995,0.4483,2472.1,2471.6,1.3099]
[1730700901288,3.61261,2471.9,2471.7,0.40483]
[1730700901493,3.61261,2471.9,2471.8,0.40482]
[1730700901494,3.2078,2471.9,2471.8,0.40482]
[1730700902901,3.2078,2471.9,2471.6,1.3099]
[1730700903085,3.2078,2471.9,2471.7,0.40483]
[1730700903086,0.4373,2471.8,2471.7,0.40483]
[1730700903287,3.2078,2471.9,2471.8,0.40482]
[1730700905397,0.4373,2472.0,2471.8,0.40482]
[1730700905799,0.4373,2472.0,2471.9,0.83231]
[1730700906194,3.6598,2472.2,2472.1,0.40477]
[1730700906394,3.2078,2472.2,2472.1,0.40477]
[1730700907098,3.61256,2472.2,2472.0,1.29428]
[1730700907997,3.2078,2472.2,2472.1,0.40477]
[1730700908390,3.2078,2472.2,2472.0,1.29428]
[1730700908593,3.2078,2472.2,2472.0,0.8895]
[1730700908790,3.2078,2472.2,2472.1,0.40477]
[1730700909484,3.61256,2472.2,2472.0,1.29428]
[1730700909690,3.61256,2472.2,2472.0,0.85188]
[1730700909890,3.15992569,2472.1,2471.6,0.4251]
[1730700910091,0.4353,2472.0,2471.9,0.40481]
[1730700911598,0.84009,2472.0,2471.8,0.40482]
[1730700911800,0.4576,2471.9,2471.8,0.40482]
[1730700915593,0.40486,2471.6,2471.4,0.40488]
[1730700915795,1.458171,2471.5,2471.3,0.4331]
[1730700915996,0.8332,2471.4,2471.2,3.61271]
[1730700916387,0.8332,2471.4,2471.2,0.40491]
[1730700916593,0.4283,2471.4,2471.0,0.8758]
[1730700916788,0.4283,2471.4,2471.3,0.4049]
[1730700917397,0.83319,2471.4,2471.2,0.40491]
[1730700918102,3.2078,2471.6,2471.4,0.40488]
[1730700918103,0.40486,2471.6,2471.4,0.40488]
[1730700918302,0.82896,2471.6,2471.4,0.40488]
[1730700918598,0.82896,2471.6,2471.0,4.0836]
[1730700918599,0.4629,2471.5,2471.3,0.40489]
[1730700920303,0.4629,2471.5,2471.0,4.0836]
[1730700920304,0.86778,2471.5,2471.2,0.40491]
[1730700920500,0.4629,2471.5,2471.3,0.40489]
[1730700920694,0.4241,2471.6,2471.0,4.0836]
[1730700920998,3.59317104,2471.9,2471.7,0.40484]
[1730700920999,0.4551,2471.8,2471.7,0.40484]
[1730700921198,0.8898,2471.8,2471.5,0.40487]
[1730700921402,0.40485,2471.7,2471.4,0.4279]
[1730700921706,1.29463,2471.8,2471.6,0.40485]
[1730700922296,0.40484,2471.7,2471.5,0.86196]
[1730700922500,1.29463,2471.8,2471.5,0.86196]
[1730700922698,0.8898,2471.8,2471.4,0.4279]
[1730700922998,0.40486,2471.6,2471.4,0.83278]
[1730700923199,3.61265,2471.7,2471.5,0.40487]
[1730700923699,3.61265,2471.7,2471.3,0.4553]
[1730700924005,3.61265,2471.7,2471.4,0.40488]
[1730700924205,3.61264,2471.7,2471.5,0.40486]
[1730700924697,0.4609,2471.6,2471.5,0.40486]
[1730700926007,0.4609,2471.6,2471.3,0.4553]
[1730700926008,0.8956,2471.8,2471.3,0.4553]
[1730700926205,0.902,2471.8,2471.7,0.40484]
[1730700926401,0.4551,2471.8,2471.7,0.40484]
[1730700928402,0.4551,2471.8,2471.4,0.40488]
[1730700928403,0.40486,2471.6,2471.4,0.40488]
[1730700928605,4.02037104,2471.7,2471.1,0.4325]
[1730700928907,0.40489,2471.4,2471.2,0.9960012]
[1730700929107,0.8674,2471.3,2471.2,0.40491]
[1730700929310,1.3019,2471.3,2471.2,0.99603696]
[1730700929812,0.8534,2471.3,2471.2,0.99603696]
[1730700932303,0.8534,2471.3,2471.2,0.40491]
[1730700932501,0.8534,2471.3,2471.2,0.99615134]
[1730700933323,0.40485,2471.7,2471.5,0.40486]
[1730700933533,0.9207,2471.6,2471.5,0.40486]
[1730700934731,0.9207,2471.6,2471.4,0.4582]
[1730700935025,0.9207,2471.6,2471.5,0.40487]
[1730700935636,1.32556,2471.6,2471.4,0.86308]
[1730700936134,1.32556,2471.6,2471.5,0.40487]
[1730700936135,0.9207,2471.6,2471.5,0.40487]
[1730700936828,0.9207,2471.6,2471.4,0.86308]
[1730700937026,1.32556,2471.6,2471.4,0.86308]
[1730700937436,0.9207,2471.6,2471.4,0.86308]
[1730700937934,1.32556,2471.6,2471.4,0.86308]
[1730700940329,0.9207,2471.6,2471.5,0.40487]
[1730700940928,1.32555,2471.6,2471.4,0.86308]
[1730700942025,0.9207,2471.6,2471.5,0.40487]
[1730700942425,0.9207,2471.6,2471.4,0.4582]
[1730700942630,1.32556,2471.6,2471.4,0.86308]
[1730700944224,3.2078,2471.8,2471.4,0.4582]
[1730700944530,0.4194,2471.8,2471.7,0.40484]
[1730700947236,1.41612686,2472.0,2471.8,0.40482]
[1730700947434,1.85062686,2472.0,2471.8,0.40482]
[1730700947733,1.85062686,2472.0,2471.7,0.40483]
[1730700947734,0.40481,2471.9,2471.7,0.40483]
[1730700947923,1.85061686,2472.0,2471.8,0.40481]
[1730700949838,1.44582686,2472.0,2471.5,0.4545]
[1730700950132,0.40481,2471.9,2471.7,0.40483]
[1730700950334,0.85291,2471.9,2471.7,0.40483]
[1730700950829,0.4481,2471.9,2471.8,0.40482]
[1730700953335,1.85061686,2472.0,2471.8,0.40482]
[1730700953532,0.40482,2471.9,2471.6,0.40484]
[1730700953735,0.40482,2471.9,2471.5,0.4545]
[1730700953736,0.40482,2471.9,2471.7,0.40483]
[1730700954339,1.85062686,2472.0,2471.8,0.40481]
[1730700955936,1.85062686,2472.0,2471.9,0.40481]
[1730700955937,1.44582686,2472.0,2471.9,0.40481]
[1730700956135,1.01132686,2472.0,2471.9,0.40481]
[1730700956332,1.01132686,2472.0,2471.9,0.99592912]
[1730700956639,1.01132686,2472.0,2471.9,2.10065923]
[1730700957329,1.01132686,2472.0,2471.9,1.94159335]
[1730700957533,1.01132686,2472.0,2471.9,2.56113766]
[1730700957737,1.01132686,2472.0,2471.9,2.56076462]
[1730700958233,1.01132686,2472.0,2471.9,1.61526056]
[1730700958632,1.01132686,2472.0,2471.9,1.61522973]
[1730700958825,1.01132686,2472.0,2471.9,2.56057536]
[1730700960438,1.01132686,2472.0,2471.9,1.61522973]
[1730700961234,1.01132686,2472.0,2471.9,2.56039619]
[1730700961436,0.94872686,2472.0,2471.9,2.56039619]
[1730700963148,0.94872686,2472.0,2471.9,2.55918177]
[1730700964245,0.94872686,2472.0,2471.9,1.6146328]
[1730700964739,0.94872686,2472.0,2471.9,1.45565311]
[1730700966643,0.94872686,2472.0,2471.9,1.45522554]
[1730700967140,0.94872686,2472.0,2471.9,1.45522295]
[1730700967347,0.94872686,2472.0,2471.9,0.86531]
[1730700972451,0.06681686,2472.0,2471.9,5.5004562]
[1730700972648,0.06681686,2472.0,2471.9,5.65902439]
[1730700972845,0.06681686,2472.0,2471.9,6.60214144]
[1730700973750,0.06681686,2472.0,2471.9,5.06945239]
[1730700973952,0.06681686,2472.0,2471.9,6.60171665]
[1730700974347,6.86e-06,2472.0,2471.9,6.60155885]
[1730700974549,0.8641,2472.6,2472.5,0.40471]
[1730700974847,3.2078,2472.8,2472.7,0.40467]
[1730700975256,3.6505,2472.8,2472.7,0.40467]
[1730700976143,3.6505,2472.8,2472.3,3.2078]
[1730700976144,4.51247,2472.8,2472.3,3.2078]
[1730700976349,4.51247,2472.8,2472.6,0.40468]
[1730700977146,4.1078,2472.8,2472.6,0.40469]
[1730700977348,4.51247,2472.8,2472.6,0.40469]
[1730700978354,4.51247,2472.8,2472.3,3.2078]
[1730700978355,4.1078,2472.8,2472.3,3.2078]
[1730700978657,4.51246,2472.8,2472.6,0.40468]
[1730700978957,1.30466,2472.8,2472.6,0.40468]
[1730700979155,0.9,2472.8,2472.3,3.2078]
[1730700979349,0.9,2472.8,2472.7,0.40467]
[1730700981552,1.30466,2472.8,2472.6,0.40468]
[1730700981754,0.9,2472.8,2472.7,0.40467]
[1730700984948,1.30466,2472.8,2472.6,0.40468]
[1730700985353,1.30466,2472.8,2472.3,6.36827104]
[1730700985354,0.9,2472.8,2472.3,6.36827104]
[1730700985563,1.30466,2472.8,2472.6,0.40468]
[1730700985752,0.9,2472.8,2472.3,6.36827104]
[1730700985957,0.9,2472.8,2472.7,0.40467]
[1730700987160,1.01079529,2473.3,2473.2,0.40459]
[1730700987358,1.88269529,2473.3,2473.2,0.40459]
[1730700990660,5.92589529,2473.3,2472.6,4.06037104]
[1730700990866,1.88269529,2473.3,2472.9,0.40463]
[1730700991057,0.4046,2473.2,2472.9,0.40463]
[1730700991258,2.28727529,2473.3,2473.1,0.4046]
[1730700992359,0.40459,2473.2,2473.0,0.40462]
[1730700992563,1.88269529,2473.3,2473.0,0.40462]
[1730700992768,1.88269529,2473.3,2473.2,0.40459]
[1730700993061,1.45179529,2473.3,2473.2,0.40459]
[1730700997167,1.01079529,2473.3,2473.2,4.44779]
[1730700999269,1.01079529,2473.3,2473.2,0.40459]
[1730700999572,1.01079529,2473.3,2473.2,7.65559]
[1730701001969,1.01079529,2473.3,2473.2,4.44779]
[1730701002566,1.01079529,2473.3,2473.2,7.65559]
[1730701004073,1.01079529,2473.3,2473.2,4.44779]
[1730701004484,1.01079529,2473.3,2473.2,7.65559]
[1730701008286,1.01079529,2473.3,2473.2,3.61239]
[1730701009780,1.01079529,2473.3,2473.2,4.05479]
[1730701011591,1.01079529,2473.3,2473.2,0.84699]
[1730701011892,1.01079529,2473.3,2473.2,3.61239]
[1730701014092,1.01079529,2473.3,2473.2,0.40459]
[1730701014290,1.01079529,2473.3,2473.2,3.61239]
[1730701016894,1.01079529,2473.3,2473.2,0.40459]
[1730701017098,1.01079529,2473.3,2473.2,3.61239]
[1730701018000,1.01079529,2473.3,2473.2,0.40459]
[1730701018498,1.01079529,2473.3,2473.2,3.61239]
[1730701019598,1.01079529,2473.3,2473.2,0.40459]
[1730701020094,1.01079529,2473.3,2473.2,3.61239]
[1730701021189,1.01079529,2473.3,2473.2,0.40459]
[1730701021391,1.01079529,2473.3,2473.2,3.61239]
[1730701021795,1.01079529,2473.3,2473.2,0.40459]
[1730701022999,1.01079529,2473.3,2473.2,3.61239]
[1730701023595,1.01079529,2473.3,2473.2,0.40459]
[1730701023799,1.01079529,2473.3,2473.0,0.40461]
[1730701023800,5.45857529,2473.3,2473.0,0.40461]
[1730701023990,1.2807,2473.2,2473.0,0.40461]
[1730701024195,0.441,2473.1,2473.0,0.40461]
[1730701024399,0.441,2473.1,2472.6,3.16047104]
[1730701024598,0.40463,2473.0,2472.6,3.16047104]
[1730701024802,0.441,2473.1,2472.6,3.16047104]
[1730701025000,0.4405,2472.9,2472.8,0.40466]
[1730701028911,0.4405,2472.9,2472.8,3.56513104]
[1730701032406,0.4405,2472.9,2472.8,4.15404013]
[1730701037411,0.4405,2472.9,2472.8,4.15373433]
[1730701038201,0.4405,2472.9,2472.8,4.15369636]
[1730701039410,0.4405,2472.9,2472.8,2.45091981]
[1730701040315,0.4405,2472.9,2472.8,2.45089076]
[1730701040814,0.4405,2472.9,2472.8,1.86235449]
[1730701041003,0.4405,2472.9,2472.8,2.91406342]
[1730701041205,0.4405,2472.9,2472.8,2.32555449]
[1730701042116,0.4405,2472.9,2472.8,2.91401214]
[1730701042313,0.4405,2472.9,2472.8,2.32555449]
[1730701046716,0.441,2473.1,2472.8,1.92089449]
[1730701047021,0.4356,2473.2,2473.1,0.40461]
[1730701047022,0.4608,2473.2,2473.1,0.40461]
[1730701048630,1.01079529,2473.3,2473.2,0.40459]
[1730701048926,1.01079529,2473.3,2473.2,1.86228449]
[1730701050121,1.01079529,2473.3,2473.2,1.45769449]
[1730701050333,5.05399529,2473.3,2473.1,1.86229449]
[1730701050513,0.8745,2473.2,2473.1,1.86229449]
[1730701051029,0.40461,2473.1,2472.8,1.92089449]
[1730701051224,0.40461,2473.1,2472.9,0.99289678]
[1730701051225,0.4198,2473.1,2472.9,0.99289678]
[1730701051418,0.4198,2473.1,2472.9,0.40464]
[1730701052325,0.4198,2473.1,2473.0,0.40463]
[1730701054122,0.4198,2473.1,2472.7,4.05539654]
[1730701054323,0.4198,2473.1,2472.9,0.40463]
[1730701054524,0.82441,2473.1,2472.9,0.40463]
[1730701054924,0.4198,2473.1,2472.9,0.40463]
[1730701057328,0.4198,2473.1,2473.0,0.58897269]
[1730701058330,0.4198,2473.1,2472.9,0.40463]
[1730701058525,0.4198,2473.1,2473.0,0.58898952]
[1730701059126,4.463,2473.1,2473.0,0.58898952]
[1730701059324,4.463,2473.1,2472.7,0.40467]
[1730701059531,0.40464,2472.9,2472.8,0.58944291]
[1730701059736,4.044,2473.0,2472.6,3.2078]
[1730701059929,0.9274,2472.8,2472.7,0.5895563]
[1730701060332,0.9274,2472.8,2472.7,0.99436771]
[1730701060543,0.9274,2472.8,2472.7,0.58969771]
[1730701062243,0.9274,2472.8,2472.7,0.58978494]
[1730701062443,4.9714,2472.8,2472.7,0.58978494]
[1730701064252,0.9274,2472.8,2472.6,0.40468]
[1730701064453,0.4331,2472.7,2472.6,0.40468]
[1730701064656,0.4331,2472.7,2472.6,0.58957694]
[1730701064856,0.4331,2472.7,2472.6,0.99426694]
[1730701066950,0.4331,2472.7,2472.6,1.42486694]
[1730701070153,0.4331,2472.7,2472.6,1.02017694]
[1730701070349,0.4331,2472.7,2472.6,0.58957694]
[1730701070745,0.40469,2472.6,2472.5,3.2078]
[1730701071045,0.83778,2472.7,2472.5,3.79735262]
[1730701071249,0.83778,2472.7,2472.5,3.61251]
[1730701072049,0.4331,2472.7,2472.5,3.2078]
[1730701072355,0.4331,2472.7,2472.6,0.40469]
[1730701072944,0.4331,2472.7,2472.5,3.2078]
[1730701072945,0.4634,2472.8,2472.7,0.40467]
[1730701074658,0.4634,2472.8,2472.7,0.84147]
[1730701082953,3.2078,2473.2,2472.7,5.06986209]
[1730701083258,3.2078,2473.2,2473.1,0.40461]
[1730701084164,3.2078,2473.2,2473.1,2.32180718]
[1730701085567,3.2078,2473.2,2473.1,2.9106107]
[1730701087863,3.2078,2473.2,2473.1,2.32180718]
[1730701088861,4.66629529,2473.3,2473.2,0.40459]
[1730701089362,4.21859529,2473.3,2473.2,0.40459]
[1730701089763,1.01079529,2473.3,2473.2,5.90558718]